{"text_format":"3","workbook":"xlsx","n_sheets":2,"sheets":["Start","Rentowność klienta"],"not_rendered":{"charts":1},"read":"whole","date_system":"1900"}

{"sheet":"Start","index":0,"n_rows":7,"n_cols":2,"rows_kept":7}
[null,"INFORMACJE O TYM SZABLONIE"]
[null,"Użyj tej analiza rentowności klienta do śledzenia działanie klienta, koszt sprzedaży i innych kosztów."]
[null,"Wprowadź informacje, takie jak nazwa firmy i data, oraz szczegóły w tabelach."]
[null,"Wartości w komórkach zawierających formuły i tabela Metryki podsumowujące są obliczane automatycznie, a wykres jest aktualizowany."]
[null,"Uwaga:  "]
[null,"W kolumnie A w arkuszu RENTOWNOŚĆ KLIENTA podano dodatkowe instrukcje. Ten tekst celowo został ukryty. Aby usunąć tekst, zaznacz kolumnę A, a następnie naciśnij klawisz DELETE. Aby odkryć tekst, zaznacz kolumnę A, a następnie zmień kolor czcionki."]
[null,"Aby uzyskać więcej informacji o tabelach w tym arkuszu, w tabeli naciśnij klawisz SHIFT, a następnie F10, wybierz pozycję TABELA, a następnie TEKST ALTERNATYWNY."]

{"sheet":"Rentowność klienta","index":1,"n_rows":37,"n_cols":6,"rows_kept":37,"merged":[[36,1,36,5]]}
["W tym arkuszu utwórz analiza rentowności klienta. W komórkach w tej kolumnie podano przydatne instrukcje na temat korzystania z tego arkusza. Naciśnij strzałkę w dół, aby rozpocząć pracę."]
["W komórce z prawej strony wprowadź nazwa firmy.","Nazwa firmy"]
["W komórce z prawej strony znajduje się tytuł tego arkusza.","Analiza rentowności klienta"]
["W komórce z prawej strony wprowadź data.","Data"]
["W komórce z prawej strony znajduje się porada.","Szare komórki zostaną obliczone automatycznie. Nie trzeba w nich niczego wprowadzać."]
["Wprowadź szczegóły w tabeli Działanie klienta, zaczynając od komórki z prawej strony. Dalsze instrukcje znajdują się w komórce A12.","Działanie klienta:","Nazwa segmentu 1","Nazwa segmentu 2","Nazwa segmentu 3","Ogółem"]
[null,"Liczba aktywnych klientów — początek okresu",5,8,8,{"$f":"SUM(C7:E7)","v":21}]
[null,"Liczba dodanych klientów",2,4,4,{"$f":"SUM(C8:E8)","v":10}]
[null,"Liczba utraconych klientów i klientów, z którymi zakończono współpracę",{"v":-1,"d":"-1 "},{"v":-2,"d":"-2 "},{"v":-2,"d":"-2 "},{"$f":"SUM(C9:E9)","v":{"v":-5,"d":"-5 "}}]
[null,"Liczba aktywnych klientów — koniec okresu",{"$f":"SUBTOTAL(109,Działanie_klienta[Nazwa segmentu 1])","v":6},{"$f":"SUBTOTAL(109,Działanie_klienta[Nazwa segmentu 2])","v":10},{"$f":"SUBTOTAL(109,Działanie_klienta[Nazwa segmentu 3])","v":10},{"$f":"SUBTOTAL(109,Działanie_klienta[Ogółem])","v":26}]
[]
["Wprowadź szczegóły w tabeli Analiza rentowności, zaczynając od komórki z prawej strony. Dalsze instrukcje znajdują się w komórce A16.","Analiza rentowności:","Nazwa segmentu 1","Nazwa segmentu 2","Nazwa segmentu 3","Ogółem"]
[null,"Przychód na segment",{"v":1500000,"d":"1,500,000.00 zł"},{"v":1800000,"d":"1,800,000.00 zł"},{"v":2500000,"d":"2,500,000.00 zł"},{"$f":"SUM(Analiza_rentowności[[#This Row],[Nazwa segmentu 1]:[Nazwa segmentu 3]])","v":{"v":5800000,"d":"5,800,000.00 zł"}}]
[null,"Waga",{"$f":"+C13/$F$13","v":{"v":0.25862068965517243,"d":"26%"}},{"$f":"+D13/$F$13","v":{"v":0.3103448275862069,"d":"31%"}},{"$f":"+E13/$F$13","v":{"v":0.43103448275862066,"d":"43%"}},{"$f":"SUM(Analiza_rentowności[[#This Row],[Nazwa segmentu 1]:[Nazwa segmentu 3]])","v":{"v":1,"d":"100%"}}]
[]
["Wprowadź szczegóły w tabeli Koszt sprzedaży, zaczynając od komórki z prawej strony. Dalsze instrukcje znajdują się w komórce A23.","Koszt sprzedaży:","Nazwa segmentu 1","Nazwa segmentu 2","Nazwa segmentu 3","Ogółem"]
[null,"Bieżące koszty obsługi i pomocy technicznej",{"v":1000000,"d":"1,000,000.00 zł"},{"v":1400000,"d":"1,400,000.00 zł"},{"v":1400000,"d":"1,400,000.00 zł"},{"$f":"SUM(C17:E17)","v":{"v":3800000,"d":"3,800,000.00 zł"}}]
[null,"Inne koszty bezpośrednie dotyczące klientów",{"v":200000,"d":"200,000.00 zł"},{"v":100000,"d":"100,000.00 zł"},{"v":100000,"d":"100,000.00 zł"},{"$f":"SUM(C18:E18)","v":{"v":400000,"d":"400,000.00 zł"}}]
[null,"Całkowity koszt sprzedaży",{"$f":"SUM(C17:C18)","v":{"v":1200000,"d":"1,200,000.00 zł"}},{"$f":"SUM(D17:D18)","v":{"v":1500000,"d":"1,500,000.00 zł"}},{"$f":"SUM(E17:E18)","v":{"v":1500000,"d":"1,500,000.00 zł"}},{"$f":"SUM(F17:F18)","v":{"v":4200000,"d":"4,200,000.00 zł"}}]
[null,"Marża brutto",{"$f":"+C13-C19","v":{"v":300000,"d":"300,000.00 zł"}},{"$f":"+D13-D19","v":{"v":300000,"d":"300,000.00 zł"}},{"$f":"+E13-E19","v":{"v":1000000,"d":"1,000,000.00 zł"}},{"$f":"+F13-F19","v":{"v":1600000,"d":"1,600,000.00 zł"}}]
[null,"Waga",{"$f":"MAX(0, MIN(1,C20/$F$20))","v":{"v":0.1875,"d":"19%"}},{"$f":"MAX(0, MIN(1,D20/$F$20))","v":{"v":0.1875,"d":"19%"}},{"$f":"MAX(0, MIN(1,E20/$F$20))","v":{"v":0.625,"d":"63%"}},{"$f":"SUM(C21:E21)","v":{"v":1,"d":"100%"}}]
[]
["Wprowadź szczegóły w tabeli Inne koszty, zaczynając od komórki z prawej strony. Dalsze instrukcje znajdują się w komórce A31.","Inne koszty:","Nazwa segmentu 1","Nazwa segmentu 2","Nazwa segmentu 3","Ogółem"]
[null,"Pozyskiwanie klientów",{"v":105000,"d":"105,000.00 zł"},{"v":120000,"d":"120,000.00 zł"},{"v":235000,"d":"235,000.00 zł"},{"$f":"SUM(Inne_koszty[[#This Row],[Nazwa segmentu 1]:[Nazwa segmentu 3]])","v":{"v":460000,"d":"460,000.00 zł"}}]
[null,"Działania marketingowe dotyczące klientów",{"v":150000,"d":"150,000.00 zł"},{"v":125000,"d":"125,000.00 zł"},{"v":275000,"d":"275,000.00 zł"},{"$f":"SUM(C25:E25)","v":{"v":550000,"d":"550,000.00 zł"}}]
[null,"Kończenie współpracy z klientami",{"v":80000,"d":"80,000.00 zł"},{"v":190000,"d":"190,000.00 zł"},{"v":140000,"d":"140,000.00 zł"},{"$f":"SUM(C26:E26)","v":{"v":410000,"d":"410,000.00 zł"}}]
[null,"Suma innych kosztów dotyczących klientów",{"$f":"SUM(C24:C26)","v":{"v":335000,"d":"335,000.00 zł"}},{"$f":"SUM(D24:D26)","v":{"v":435000,"d":"435,000.00 zł"}},{"$f":"SUM(E24:E26)","v":{"v":650000,"d":"650,000.00 zł"}},{"$f":"SUM(F24:F26)","v":{"v":1420000,"d":"1,420,000.00 zł"}}]
[null,"Zysk dotyczący klientów na segment",{"$f":"+C20-C27","v":{"v":-35000,"d":"-35,000.00 zł"}},{"$f":"+D20-D27","v":{"v":-135000,"d":"-135,000.00 zł"}},{"$f":"+E20-E27","v":{"v":350000,"d":"350,000.00 zł"}},{"$f":"SUM(C28:E28)","v":{"v":180000,"d":"180,000.00 zł"}}]
[null,"Waga",{"$f":"MAX(0,MIN(1, C28/$F$28))","v":{"v":0,"d":"0%"}},{"$f":"MAX(0,MIN(1, D28/$F$28))","v":{"v":0,"d":"0%"}},{"$f":"MAX(0,MIN(1, E28/$F$28))","v":{"v":1,"d":"100%"}},{"$f":"SUM(C29:E29)","v":{"v":1,"d":"100%"}}]
[]
["Tabela Metryki podsumowujące rozpoczynająca się w komórce po prawej stronie jest aktualizowana automatycznie. Dalsze instrukcje znajdują się w komórce A37.","Metryki podsumowujące:","Nazwa segmentu 1","Nazwa segmentu 2","Nazwa segmentu 3","Trend"]
[null,"Średni koszt na pozyskanego klienta",{"$f":"+C24/C8","v":{"v":52500,"d":"52,500.00 zł"}},{"$f":"+D24/D8","v":{"v":30000,"d":"30,000.00 zł"}},{"$f":"+E24/E8","v":{"v":58750,"d":"58,750.00 zł"}}]
[null,"Średni koszt na utraconego klienta",{"$f":"-C26/C9","v":{"v":80000,"d":"80,000.00 zł"}},{"$f":"-D26/D9","v":{"v":95000,"d":"95,000.00 zł"}},{"$f":"-E26/E9","v":{"v":70000,"d":"70,000.00 zł"}}]
[null,"Średni koszt marketingu na aktywnego klienta",{"$f":"+C26/Działanie_klienta[[#Totals],[Nazwa segmentu 1]]","v":{"v":13333.333333333334,"d":"13,333.33 zł"}},{"$f":"+D25/Działanie_klienta[[#Totals],[Nazwa segmentu 2]]","v":{"v":12500,"d":"12,500.00 zł"}},{"$f":"+E25/Działanie_klienta[[#Totals],[Nazwa segmentu 3]]","v":{"v":27500,"d":"27,500.00 zł"}}]
[null,"Średni przychód (strata) na klienta",{"$f":"+C29/Działanie_klienta[[#Totals],[Nazwa segmentu 1]]","v":{"v":0,"d":"0.00 zł"}},{"$f":"+D28/Działanie_klienta[[#Totals],[Nazwa segmentu 2]]","v":{"v":-13500,"d":"-13,500.00 zł"}},{"$f":"+E28/Działanie_klienta[[#Totals],[Nazwa segmentu 3]]","v":{"v":35000,"d":"35,000.00 zł"}}]
[]
["W komórce z prawej strony znajduje się wykres kolumnowy grupowany przedstawiający metryki podsumowujące na segment klientów.","W tej komórce znajduje się wykres kolumnowy grupowany przedstawiający metryki podsumowujące na segment klientów."]